fUST/lending_fUST_20260521
["ID","MTS","AMOUNT","RATE_DAILY","PERIOD"]
[422724461,1779316238000,-507.00378521,8.114e-05,2]
[422724447,1779316238000,-500.0,8.111e-05,2]
[422724444,1779316238000,-500.0,8.111e-05,2]
[422724502,1779316238000,-500.0,8.219e-05,2]
[422724498,1779316238000,-500.0,8.219e-05,2]
[422724500,1779316238000,-500.0,8.219e-05,2]
[422724508,1779316238000,-819.23,8.219e-05,2]
[422724510,1779316238000,-500.0,8.219e-05,2]
[422724506,1779316238000,-538.23,8.219e-05,2]
[422724495,1779316238000,-500.0,8.219e-05,2]
[422724488,1779316238000,-152.0,8.121e-05,30]
[422724489,1779316238000,-580.3095,8.219e-05,2]
[422724493,1779316238000,-519.51,8.219e-05,2]
[422724486,1779316238000,-721670.48798053,8.115e-05,2]
[422724491,1779316238000,-2053.7024,8.219e-05,2]
[422724484,1779316238000,-4062.29922733,8.115e-05,2]
[422724475,1779316238000,-500.0,8.114e-05,2]
[422724497,1779316238000,-500.0,8.219e-05,2]
[422724474,1779316238000,-350.0,8.114e-05,2]
[422724477,1779316238000,-2532.89946584,8.115e-05,2]
[422724446,1779316238000,-500.0,8.111e-05,2]
[422724457,1779316238000,-500.0,8.114e-05,2]
[422724455,1779316238000,-500.0,8.114e-05,2]
[422724451,1779316238000,-275.25033238,8.112e-05,2]
[422724449,1779316238000,-500.0,8.111e-05,2]
[422724504,1779316238000,-500.0,8.219e-05,2]
[422724453,1779316238000,-500.0,8.114e-05,2]
[422724464,1779316238000,-500.0,8.114e-05,2]
[422724470,1779316238000,-500.0,8.114e-05,2]
[422724468,1779316238000,-500.0,8.114e-05,2]
[422724459,1779316238000,-500.0,8.114e-05,2]
[422724466,1779316238000,-500.0,8.114e-05,2]
[422724462,1779316238000,-500.0,8.114e-05,2]
[422724472,1779316238000,-500.0,8.114e-05,2]
[422724586,1779316239000,-500.0,8.219e-05,2]
[422724574,1779316239000,-817.52,8.219e-05,2]
[422724576,1779316239000,-500.0,8.219e-05,2]
[422724570,1779316239000,-500.0,8.219e-05,2]
[422724584,1779316239000,-1091.4,8.219e-05,2]
[422724588,1779316239000,-500.0,8.219e-05,2]
[422724582,1779316239000,-500.0,8.219e-05,2]
[422724569,1779316239000,-500.0,8.219e-05,2]
[422724566,1779316239000,-233.76139984,8.219e-05,2]
[422724573,1779316239000,-500.0,8.219e-05,2]
[422724590,1779316239000,-500.0,8.219e-05,2]
[422724607,1779316239000,-500.0,8.219e-05,2]
[422724593,1779316239000,-572.81,8.219e-05,2]
[422724595,1779316239000,-1290.83,8.219e-05,2]
[422724597,1779316239000,-500.0,8.219e-05,2]
[422724605,1779316239000,-3293.9,8.219e-05,2]
[422724599,1779316239000,-4108.81,8.219e-05,2]
[422724603,1779316239000,-551.34,8.219e-05,2]
[422724611,1779316239000,-500.0,8.219e-05,2]
[422724601,1779316239000,-618.05,8.219e-05,2]
[422724609,1779316239000,-500.0,8.219e-05,2]
[422724580,1779316239000,-1686.14,8.219e-05,2]
[422724592,1779316239000,-500.0,8.219e-05,2]
[422724578,1779316239000,-500.0,8.219e-05,2]
[422724537,1779316239000,-1261.45,8.219e-05,2]
[422724552,1779316239000,-500.0,8.219e-05,2]
[422724514,1779316239000,-555.17,8.219e-05,2]
[422724516,1779316239000,-500.0,8.219e-05,2]
[422724519,1779316239000,-783.47,8.219e-05,2]
[422724517,1779316239000,-539.22,8.219e-05,2]
[422724521,1779316239000,-500.0,8.219e-05,2]
[422724529,1779316239000,-627.73,8.219e-05,2]
[422724535,1779316239000,-500.0,8.219e-05,2]
[422724534,1779316239000,-587.44,8.219e-05,2]
[422724613,1779316239000,-370.03332978,8.219e-05,2]
[422724532,1779316239000,-500.0,8.219e-05,2]
[422724564,1779316239000,-500.0,8.219e-05,2]
[422724539,1779316239000,-500.0,8.219e-05,2]
[422724543,1779316239000,-500.0,8.219e-05,2]
[422724545,1779316239000,-500.0,8.219e-05,2]
[422724547,1779316239000,-500.0,8.219e-05,2]
[422724554,1779316239000,-500.0,8.219e-05,2]
[422724556,1779316239000,-500.0,8.219e-05,2]
[422724549,1779316239000,-363.6157793,8.219e-05,2]
[422724558,1779316239000,-500.0,8.219e-05,2]
[422724551,1779316239000,-500.0,8.219e-05,2]
[422724560,1779316239000,-500.0,8.219e-05,2]
[422724562,1779316239000,-643.72,8.219e-05,2]
[422724541,1779316239000,-500.0,8.219e-05,2]
[422724615,1779316239000,-1711.6,8.219e-05,2]
[422724512,1779316239000,-500.0,8.219e-05,2]
[422724623,1779316239000,-1106.27,8.219e-05,2]
[422724679,1779316239000,-76.22694971,8.219e-05,2]
[422724677,1779316239000,-502.35,8.219e-05,2]
[422724703,1779316239000,-423.77305029,8.219e-05,2]
[422724706,1779316239000,-1408.56,8.219e-05,2]
[422724708,1779316239000,-1214.28,8.219e-05,2]
[422724710,1779316239000,-500.0,8.219e-05,2]
[422724712,1779316239000,-921.25,8.219e-05,2]
[422724714,1779316239000,-1623.02,8.219e-05,2]
[422724718,1779316239000,-125.96976769,8.219e-05,2]
[422724716,1779316239000,-783.74023231,8.219e-05,2]
[422724671,1779316239000,-1195.26,8.219e-05,2]
[422724727,1779316239000,-767.53,8.219e-05,2]
[422724725,1779316239000,-500.0,8.219e-05,2]
[422724722,1779316239000,-1385.73,8.219e-05,2]
[422724720,1779316239000,-633.28,8.219e-05,2]
[422724729,1779316239000,-1161.5,8.219e-05,2]
[422724739,1779316239000,-860.3,8.219e-05,2]
[422724737,1779316239000,-4482.54,8.219e-05,2]
[422724735,1779316239000,-500.0,8.219e-05,2]
[422724731,1779316239000,-3646.27,8.219e-05,2]
[422724733,1779316239000,-384.37171133,8.219e-05,2]
[422724620,1779316239000,-777.53,8.219e-05,2]
[422724724,1779316239000,-500.0,8.219e-05,2]
[422724674,1779316239000,-500.0,8.219e-05,2]
[422724675,1779316239000,-500.0,8.219e-05,2]
[422724664,1779316239000,-500.0,8.219e-05,2]
[422724621,1779316239000,-500.0,8.219e-05,2]
[422724626,1779316239000,-1911.42,8.219e-05,2]
[422724636,1779316239000,-1998.55,8.219e-05,2]
[422724618,1779316239000,-500.0,8.219e-05,2]
[422724638,1779316239000,-1209.88,8.219e-05,2]
[422724628,1779316239000,-500.0,8.219e-05,2]
[422724634,1779316239000,-556.33,8.219e-05,2]
[422724632,1779316239000,-500.0,8.219e-05,2]
[422724630,1779316239000,-500.0,8.219e-05,2]
[422724642,1779316239000,-21647.45,8.219e-05,2]
[422724668,1779316239000,-500.0,8.219e-05,2]
[422724650,1779316239000,-500.0,8.219e-05,2]
[422724640,1779316239000,-1289.88,8.219e-05,2]
[422724660,1779316239000,-3651.3,8.219e-05,2]
[422724656,1779316239000,-3016.59,8.219e-05,2]
[422724658,1779316239000,-4635.54,8.219e-05,2]
[422724662,1779316239000,-616.64,8.219e-05,2]
[422724644,1779316239000,-995.81,8.219e-05,2]
[422724648,1779316239000,-820.81,8.219e-05,2]
[422724652,1779316239000,-500.0,8.219e-05,2]
[422724654,1779316239000,-500.0,8.219e-05,2]
[422724666,1779316239000,-500.0,8.219e-05,2]
[422724670,1779316239000,-906.87,8.219e-05,2]
[422724646,1779316239000,-500.0,8.219e-05,2]
[422724745,1779316240000,-875.97,8.219e-05,2]
[422724743,1779316240000,-1300.81,8.219e-05,2]
[422724747,1779316240000,-1676.53,8.219e-05,2]
[422724741,1779316240000,-1512.12,8.219e-05,2]
[422724755,1779316240000,-232.3842534,8.219e-05,2]
[422724753,1779316240000,-1956.89,8.219e-05,2]
[422724754,1779316240000,-500.0,8.219e-05,2]
[422724749,1779316240000,-500.0,8.219e-05,2]
[422724751,1779316240000,-500.0,8.219e-05,2]
[422724804,1779316249000,-226.34919263,8.219e-05,2]
[422724802,1779316249000,-7774.59982727,8.014e-05,2]
[422724803,1779316249000,-1689.6957466,8.219e-05,2]
[422724808,1779316250000,-1555.47,8.219e-05,2]
[422724807,1779316250000,-348.72080737,8.219e-05,2]
[422724809,1779316250000,-232.41949782,8.219e-05,2]
[422724810,1779316250000,-267.58050218,8.219e-05,2]
[422724811,1779316250000,-1640.28,8.219e-05,2]
[422724813,1779316250000,-290.52852886,8.219e-05,2]
[422724816,1779316250000,-152.72177909,8.219e-05,2]
[422724815,1779316250000,-500.0,8.219e-05,2]
[422724817,1779316250000,-321.47462842,8.219e-05,2]
[422724812,1779316250000,-209.47147114,8.219e-05,2]
[422724814,1779316250000,-500.0,8.219e-05,2]
[422724829,1779317432000,-300.0,7.911e-05,2]
[422724826,1779317432000,-152.0,7.688e-05,7]
[422724828,1779317432000,-343.047,7.755e-05,2]
[422724830,1779317432000,-444.0,7.911e-05,2]
[422724831,1779317432000,-500.0,7.912e-05,2]
[422724832,1779317432000,-500.0,7.912e-05,2]
[422724833,1779317432000,-279.49854963,7.912e-05,2]
[422724834,1779317432000,-220.50145037,7.912e-05,2]
[422724835,1779317432000,-162.58903502,7.912e-05,2]
[422724827,1779317432000,-661.25271587,7.698e-05,2]
[422724937,1779317438000,-500.0,7.912e-05,2]
[422724938,1779317438000,-500.0,7.912e-05,2]
[422724936,1779317438000,-500.0,7.912e-05,2]
[422724939,1779317438000,-164.09288362,7.912e-05,2]
[422724943,1779317438000,-500.0,7.912e-05,2]
[422724946,1779317438000,-500.0,7.912e-05,2]
[422724942,1779317438000,-500.0,7.912e-05,2]
[422724935,1779317438000,-500.0,7.912e-05,2]
[422724934,1779317438000,-500.0,7.912e-05,2]
[422724944,1779317438000,-500.0,7.912e-05,2]
[422724947,1779317438000,-500.0,7.912e-05,2]
[422724941,1779317438000,-500.0,7.912e-05,2]
[422724945,1779317438000,-500.0,7.912e-05,2]
[422724933,1779317438000,-500.0,7.912e-05,2]
[422724932,1779317438000,-500.0,7.912e-05,2]
[422724931,1779317438000,-337.41096498,7.912e-05,2]
[422724949,1779317438000,-500.0,7.912e-05,2]
[422724960,1779317438000,-500.0,7.912e-05,2]
[422724962,1779317438000,-500.0,7.912e-05,2]
[422724948,1779317438000,-500.0,7.912e-05,2]
[422724959,1779317438000,-500.0,7.912e-05,2]
[422724966,1779317438000,-500.0,7.912e-05,2]
[422724967,1779317438000,-500.0,7.912e-05,2]
[422724965,1779317438000,-500.0,7.912e-05,2]
[422724963,1779317438000,-500.0,7.912e-05,2]
[422724961,1779317438000,-500.0,7.912e-05,2]
[422724969,1779317438000,-550.0,7.912e-05,2]
[422724968,1779317438000,-500.0,7.912e-05,2]
[422724964,1779317438000,-650.72183276,7.912e-05,2]
[422724957,1779317438000,-414.02249602,7.912e-05,2]
[422724953,1779317438000,-500.0,7.912e-05,2]
[422724958,1779317438000,-500.0,7.912e-05,2]
[422724952,1779317438000,-433.18571265,7.912e-05,2]
[422724951,1779317438000,-500.0,7.912e-05,2]
[422724954,1779317438000,-500.0,7.912e-05,2]
[422724955,1779317438000,-500.0,7.912e-05,2]
[422724956,1779317438000,-500.0,7.912e-05,2]
[422724950,1779317438000,-500.0,7.912e-05,2]
[422725016,1779317439000,-500.0,8.219e-05,2]
[422725017,1779317439000,-3156.65,8.219e-05,2]
[422725011,1779317439000,-1571.93,8.219e-05,2]
[422725010,1779317439000,-1237.05,8.219e-05,2]
[422725006,1779317439000,-1045.92,8.219e-05,2]
[422725005,1779317439000,-500.0,8.219e-05,2]
[422725008,1779317439000,-1555.39,8.219e-05,2]
[422725003,1779317439000,-500.0,8.219e-05,2]
[422725002,1779317439000,-1615.89,8.219e-05,2]
[422725000,1779317439000,-500.0,8.219e-05,2]
[422725019,1779317439000,-500.0,8.219e-05,2]
[422725007,1779317439000,-841.4129,8.219e-05,2]
[422725012,1779317439000,-500.0,8.219e-05,2]
[422725035,1779317439000,-2912.73,8.219e-05,2]
[422725013,1779317439000,-3937.61,8.219e-05,2]
[422725020,1779317439000,-500.0,8.219e-05,2]
[422725021,1779317439000,-500.0,8.219e-05,2]
[422725014,1779317439000,-1108.27,8.219e-05,2]
[422725022,1779317439000,-1831.78,8.219e-05,2]
[422725015,1779317439000,-528.37,8.219e-05,2]
[422725034,1779317439000,-1915.27,8.219e-05,2]
[422724998,1779317439000,-500.0,8.219e-05,2]
[422725026,1779317439000,-500.0,8.219e-05,2]
[422725023,1779317439000,-500.0,8.219e-05,2]
[422725027,1779317439000,-442.79825751,8.219e-05,2]
[422725025,1779317439000,-500.0,8.219e-05,2]
[422725024,1779317439000,-500.0,8.219e-05,2]
[422725036,1779317439000,-1159.47,8.219e-05,2]
[422725018,1779317439000,-745.13,8.219e-05,2]
[422725009,1779317439000,-500.0,8.219e-05,2]
[422724991,1779317439000,-500.0,8.219e-05,2]
[422724999,1779317439000,-500.0,8.219e-05,2]
[422725032,1779317439000,-1449.11,8.219e-05,2]
[422724971,1779317439000,-240.84404078,8e-05,2]
[422724970,1779317439000,-151.0,7.935e-05,2]
[422724973,1779317439000,-500.0,8.219e-05,2]
[422724974,1779317439000,-500.0,8.219e-05,2]
[422724977,1779317439000,-500.0,8.219e-05,2]
[422724975,1779317439000,-500.0,8.219e-05,2]
[422724979,1779317439000,-548.94,8.219e-05,2]
[422724986,1779317439000,-500.0,8.219e-05,2]
[422724987,1779317439000,-1208.89,8.219e-05,2]
[422724978,1779317439000,-500.0,8.219e-05,2]
[422724976,1779317439000,-500.0,8.219e-05,2]
[422724980,1779317439000,-515.81,8.219e-05,2]
[422725004,1779317439000,-500.0,8.219e-05,2]
[422724983,1779317439000,-532.04,8.219e-05,2]
[422724984,1779317439000,-750.82,8.219e-05,2]
[422724981,1779317439000,-500.0,8.219e-05,2]
[422724985,1779317439000,-500.0,8.219e-05,2]
[422724989,1779317439000,-617.76,8.219e-05,2]
[422724988,1779317439000,-1682.8391,8.219e-05,2]
[422724994,1779317439000,-500.0,8.219e-05,2]
[422724990,1779317439000,-392.56629297,8.219e-05,2]
[422724992,1779317439000,-500.0,8.219e-05,2]
[422724997,1779317439000,-616.9,8.219e-05,2]
[422724993,1779317439000,-500.0,8.219e-05,2]
[422724996,1779317439000,-516.75,8.219e-05,2]
[422724995,1779317439000,-500.0,8.219e-05,2]
[422725001,1779317439000,-783.46,8.219e-05,2]
[422724982,1779317439000,-500.0,8.219e-05,2]
[422725029,1779317439000,-254.53104551,8.219e-05,2]
[422724972,1779317439000,-3160.0306808,8.18e-05,2]
[422725033,1779317439000,-601.58,8.219e-05,2]
[422725068,1779317439000,-1606.68,8.219e-05,2]
[422725073,1779317439000,-882.87,8.219e-05,2]
[422725066,1779317439000,-4442.39,8.219e-05,2]
[422725072,1779317439000,-500.0,8.219e-05,2]
[422725074,1779317439000,-500.0,8.219e-05,2]
[422725071,1779317439000,-500.0,8.219e-05,2]
[422725065,1779317439000,-1328.0,8.219e-05,2]
[422725070,1779317439000,-4295.77,8.219e-05,2]
[422725085,1779317439000,-500.0,8.219e-05,2]
[422725084,1779317439000,-824.45,8.219e-05,2]
[422725088,1779317439000,-300.0,8.28e-05,2]
[422725076,1779317439000,-500.0,8.219e-05,2]
[422725087,1779317439000,-300.0,8.28e-05,2]
[422725064,1779317439000,-500.0,8.219e-05,2]
[422725086,1779317439000,-300.0,8.28e-05,2]
[422725082,1779317439000,-500.0,8.219e-05,2]
[422725083,1779317439000,-1875.35,8.219e-05,2]
[422725078,1779317439000,-786.61,8.219e-05,2]
[422725081,1779317439000,-1246.61,8.219e-05,2]
[422725080,1779317439000,-592.3,8.219e-05,2]
[422725093,1779317439000,-300.0,8.28e-05,2]
[422725089,1779317439000,-300.0,8.28e-05,2]
[422725094,1779317439000,-300.0,8.28e-05,2]
[422725095,1779317439000,-300.0,8.28e-05,2]
[422725091,1779317439000,-300.0,8.28e-05,2]
[422725092,1779317439000,-300.0,8.28e-05,2]
[422725090,1779317439000,-300.0,8.28e-05,2]
[422725028,1779317439000,-500.0,8.219e-05,2]
[422725077,1779317439000,-500.0,8.219e-05,2]
[422725075,1779317439000,-3494.34,8.219e-05,2]
[422725079,1779317439000,-839.48,8.219e-05,2]
[422725069,1779317439000,-500.0,8.219e-05,2]
[422725067,1779317439000,-606.9,8.219e-05,2]
[422725031,1779317439000,-1184.63,8.219e-05,2]
[422725037,1779317439000,-533.15,8.219e-05,2]
[422725039,1779317439000,-954.31,8.219e-05,2]
[422725042,1779317439000,-3499.16,8.219e-05,2]
[422725041,1779317439000,-500.0,8.219e-05,2]
[422725040,1779317439000,-500.0,8.219e-05,2]
[422725048,1779317439000,-551.11,8.219e-05,2]
[422725038,1779317439000,-215.17,8.219e-05,2]
[422725044,1779317439000,-500.0,8.219e-05,2]
[422725043,1779317439000,-1490.66,8.219e-05,2]
[422725045,1779317439000,-500.0,8.219e-05,2]
[422725049,1779317439000,-869.09,8.219e-05,2]
[422725047,1779317439000,-500.0,8.219e-05,2]
[422725046,1779317439000,-785.09,8.219e-05,2]
[422725030,1779317439000,-562.96,8.219e-05,2]
[422725057,1779317439000,-178.95444027,8.219e-05,2]
[422725053,1779317439000,-1145.46,8.219e-05,2]
[422725061,1779317439000,-1365.22,8.219e-05,2]
[422725051,1779317439000,-500.0,8.219e-05,2]
[422725062,1779317439000,-500.0,8.219e-05,2]
[422725054,1779317439000,-20745.47,8.219e-05,2]
[422725050,1779317439000,-1841.99,8.219e-05,2]
[422725059,1779317439000,-852.05,8.219e-05,2]
[422725052,1779317439000,-500.0,8.219e-05,2]
[422725060,1779317439000,-1163.68,8.219e-05,2]
[422725063,1779317439000,-735.55,8.219e-05,2]
[422725056,1779317439000,-500.0,8.219e-05,2]
[422725055,1779317439000,-1113.1,8.219e-05,2]
[422725058,1779317439000,-500.0,8.219e-05,2]
[422725139,1779317440000,-617.76,8.493e-05,2]
[422725141,1779317440000,-500.0,8.493e-05,2]
[422725129,1779317440000,-548.94,8.493e-05,2]
[422725134,1779317440000,-750.82,8.493e-05,2]
[422725137,1779317440000,-500.0,8.493e-05,2]
[422725130,1779317440000,-515.81,8.493e-05,2]
[422725128,1779317440000,-500.0,8.493e-05,2]
[422725140,1779317440000,-163.92032496,8.493e-05,2]
[422725132,1779317440000,-500.0,8.493e-05,2]
[422725131,1779317440000,-500.0,8.493e-05,2]
[422725133,1779317440000,-532.04,8.493e-05,2]
[422725138,1779317440000,-1208.89,8.493e-05,2]
[422725142,1779317440000,-500.0,8.493e-05,2]
[422725135,1779317440000,-500.0,8.493e-05,2]
[422725144,1779317440000,-500.0,8.493e-05,2]
[422725158,1779317440000,-1045.92,8.493e-05,2]
[422725153,1779317440000,-783.46,8.493e-05,2]
[422725157,1779317440000,-500.0,8.493e-05,2]
[422725154,1779317440000,-1615.89,8.493e-05,2]
[422725155,1779317440000,-500.0,8.493e-05,2]
[422725146,1779317440000,-500.0,8.493e-05,2]
[422725156,1779317440000,-576.87908443,8.493e-05,2]
[422725150,1779317440000,-500.0,8.493e-05,2]
[422725151,1779317440000,-500.0,8.493e-05,2]
[422725149,1779317440000,-616.9,8.493e-05,2]
[422725148,1779317440000,-516.75,8.493e-05,2]
[422725160,1779317440000,-500.0,8.493e-05,2]
[422725171,1779317440000,-151.0,8.493e-05,2]
[422725170,1779317440000,-151.0,8.493e-05,2]
[422725152,1779317440000,-500.0,8.493e-05,2]
[422725123,1779317440000,-500.0,8.493e-05,2]
[422725096,1779317440000,-300.0,8.28e-05,2]
[422725120,1779317440000,-200.20291537,8.475e-05,2]
[422725161,1779317440000,-151.0,8.493e-05,2]
[422725099,1779317440000,-300.0,8.28e-05,2]
[422725100,1779317440000,-300.0,8.28e-05,2]
[422725098,1779317440000,-300.0,8.28e-05,2]
[422725097,1779317440000,-300.0,8.28e-05,2]
[422725101,1779317440000,-500.0,8.28e-05,2]
[422725103,1779317440000,-600.0,8.382e-05,2]
[422725113,1779317440000,-443.0,8.435e-05,2]
[422725114,1779317440000,-185.0,8.435e-05,2]
[422725102,1779317440000,-151.0,8.303e-05,2]
[422725104,1779317440000,-537.6845,8.406e-05,2]
[422725105,1779317440000,-501.19446224,8.406e-05,2]
[422725106,1779317440000,-766.43500783,8.43e-05,2]
[422725107,1779317440000,-160.0,8.43e-05,2]
[422725109,1779317440000,-2203.0,8.435e-05,2]
[422725108,1779317440000,-161.70661154,8.43e-05,2]
[422725110,1779317440000,-647.0,8.435e-05,2]
[422725112,1779317440000,-742.0,8.435e-05,2]
[422725111,1779317440000,-1413.0,8.435e-05,2]
[422725115,1779317440000,-166.213,8.435e-05,2]
[422725117,1779317440000,-250.0,8.442e-05,2]
[422725118,1779317440000,-557.5788265,8.461e-05,2]
[422725116,1779317440000,-151.585,8.435e-05,2]
[422725125,1779317440000,-500.0,8.493e-05,2]
[422725124,1779317440000,-500.0,8.493e-05,2]
[422725119,1779317440000,-200.0,8.475e-05,2]
[422725126,1779317440000,-500.0,8.493e-05,2]
[422725127,1779317440000,-500.0,8.493e-05,2]
[422725122,1779317440000,-2053.7024,8.493e-05,2]
[422725121,1779317440000,-286.68722904,8.475e-05,2]
[422725172,1779317440000,-151.0,8.493e-05,2]
[422725159,1779317440000,-1555.39,8.493e-05,2]
[422725227,1779317440000,-1606.68,8.493e-05,2]
[422725201,1779317440000,-500.0,8.493e-05,2]
[422725209,1779317440000,-869.09,8.493e-05,2]
[422725211,1779317440000,-500.0,8.493e-05,2]
[422725198,1779317440000,-954.31,8.493e-05,2]
[422725202,1779317440000,-3499.16,8.493e-05,2]
[422725203,1779317440000,-1490.66,8.493e-05,2]
[422725204,1779317440000,-500.0,8.493e-05,2]
[422725206,1779317440000,-785.09,8.493e-05,2]
[422725205,1779317440000,-500.0,8.493e-05,2]
[422725207,1779317440000,-500.0,8.493e-05,2]
[422725212,1779317440000,-500.0,8.493e-05,2]
[422725213,1779317440000,-1145.46,8.493e-05,2]
[422725220,1779317440000,-1365.22,8.493e-05,2]
[422725223,1779317440000,-500.0,8.493e-05,2]
[422725225,1779317440000,-4442.39,8.493e-05,2]
[422725224,1779317440000,-1328.0,8.493e-05,2]
[422725222,1779317440000,-735.55,8.493e-05,2]
[422725215,1779317440000,-1113.1,8.493e-05,2]
[422725218,1779317440000,-1163.68,8.493e-05,2]
[422725216,1779317440000,-500.0,8.493e-05,2]
[422725217,1779317440000,-500.0,8.493e-05,2]
[422725214,1779317440000,-20745.47,8.493e-05,2]
[422725219,1779317440000,-852.05,8.493e-05,2]
[422725226,1779317440000,-606.9,8.493e-05,2]
[422725230,1779317440000,-500.0,8.493e-05,2]
[422725229,1779317440000,-4295.77,8.493e-05,2]
[422725228,1779317440000,-500.0,8.493e-05,2]
[422725231,1779317440000,-500.0,8.493e-05,2]
[422725162,1779317440000,-151.0,8.493e-05,2]
[422725210,1779317440000,-1841.99,8.493e-05,2]
[422725208,1779317440000,-551.11,8.493e-05,2]
[422725221,1779317440000,-500.0,8.493e-05,2]
[422725194,1779317440000,-1915.27,8.493e-05,2]
[422725199,1779317440000,-500.0,8.493e-05,2]
[422725169,1779317440000,-151.0,8.493e-05,2]
[422725166,1779317440000,-248.79699,8.493e-05,2]
[422725168,1779317440000,-151.0,8.493e-05,2]
[422725163,1779317440000,-151.0,8.493e-05,2]
[422725167,1779317440000,-151.0,8.493e-05,2]
[422725165,1779317440000,-151.0,8.493e-05,2]
[422725174,1779317440000,-1571.93,8.493e-05,2]
[422725178,1779317440000,-528.37,8.493e-05,2]
[422725184,1779317440000,-500.0,8.493e-05,2]
[422725186,1779317440000,-1831.78,8.493e-05,2]
[422725173,1779317440000,-1237.05,8.493e-05,2]
[422725175,1779317440000,-500.0,8.493e-05,2]
[422725187,1779317440000,-500.0,8.493e-05,2]
[422725179,1779317440000,-500.0,8.493e-05,2]
[422725164,1779317440000,-151.0,8.493e-05,2]
[422725176,1779317440000,-3937.61,8.493e-05,2]
[422725185,1779317440000,-297.75149767,8.493e-05,2]
[422725197,1779317440000,-533.15,8.493e-05,2]
[422725192,1779317440000,-1449.11,8.493e-05,2]
[422725190,1779317440000,-562.96,8.493e-05,2]
[422725196,1779317440000,-1159.47,8.493e-05,2]
[422725193,1779317440000,-601.58,8.493e-05,2]
[422725191,1779317440000,-1184.63,8.493e-05,2]
[422725195,1779317440000,-2912.73,8.493e-05,2]
[422725189,1779317440000,-500.0,8.493e-05,2]
[422725182,1779317440000,-745.13,8.493e-05,2]
[422725183,1779317440000,-500.0,8.493e-05,2]
[422725180,1779317440000,-3156.65,8.493e-05,2]
[422725177,1779317440000,-1108.27,8.493e-05,2]
[422725188,1779317440000,-500.0,8.493e-05,2]
[422725271,1779317441000,-500.0,8.767e-05,2]
[422725273,1779317441000,-500.0,8.767e-05,2]
[422725268,1779317441000,-500.0,8.767e-05,2]
[422725278,1779317441000,-500.0,8.767e-05,2]
[422725267,1779317441000,-500.0,8.767e-05,2]
[422725280,1779317441000,-783.46,8.767e-05,2]
[422725276,1779317441000,-616.9,8.767e-05,2]
[422725279,1779317441000,-500.0,8.767e-05,2]
[422725269,1779317441000,-1208.89,8.767e-05,2]
[422725261,1779317441000,-548.94,8.767e-05,2]
[422725262,1779317441000,-515.81,8.767e-05,2]
[422725272,1779317441000,-500.0,8.767e-05,2]
[422725277,1779317441000,-500.0,8.767e-05,2]
[422725274,1779317441000,-500.0,8.767e-05,2]
[422725290,1779317441000,-151.0,8.767e-05,2]
[422725270,1779317441000,-617.76,8.767e-05,2]
[422725281,1779317441000,-1615.89,8.767e-05,2]
[422725283,1779317441000,-500.0,8.767e-05,2]
[422725284,1779317441000,-1045.92,8.767e-05,2]
[422725282,1779317441000,-500.0,8.767e-05,2]
[422725291,1779317441000,-151.0,8.767e-05,2]
[422725286,1779317441000,-470.38952845,8.767e-05,2]
[422725293,1779317441000,-151.0,8.767e-05,2]
[422725285,1779317441000,-1555.39,8.767e-05,2]
[422725292,1779317441000,-151.0,8.767e-05,2]
[422725295,1779317441000,-1237.05,8.767e-05,2]
[422725294,1779317441000,-251.336638,8.767e-05,2]
[422725288,1779317441000,-151.0,8.767e-05,2]
[422725265,1779317441000,-532.04,8.767e-05,2]
[422725275,1779317441000,-516.75,8.767e-05,2]
[422725259,1779317441000,-500.0,8.767e-05,2]
[422725287,1779317441000,-151.0,8.767e-05,2]
[422725260,1779317441000,-500.0,8.767e-05,2]
[422725235,1779317441000,-500.0,8.493e-05,2]
[422725233,1779317441000,-500.0,8.493e-05,2]
[422725232,1779317441000,-882.87,8.493e-05,2]
[422725234,1779317441000,-3494.34,8.493e-05,2]